[Event "Late-Titled-Tuesday-Blitz-February-27-2024"]
[Site "Chess.com"]
[Date "2024.02.27"]
[Round "4"]
[White "yaguigor"]
[Black "czasnaszachy"]
[Result "1-0"]
[WhiteElo "2625"]
[BlackElo "2434"]
[TimeControl "180+1"]
[EndTime "14:40:35 PST"]
[Termination "yaguigor won on time"]

1. d4 {[%clk 0:03:00.9]} 1... Nf6 {[%clk 0:02:59.1]} 2. c4 {[%clk 0:03:00.2]}
2... e6 {[%clk 0:02:58.8]} 3. Nc3 {[%clk 0:02:59.7]} 3... Bb4 {[%clk 0:02:58.5]}
4. Qc2 {[%clk 0:02:59.8]} 4... d5 {[%clk 0:02:57]} 5. a3 {[%clk 0:02:55.1]} 5...
Bxc3+ {[%clk 0:02:56.3]} 6. Qxc3 {[%clk 0:02:55.8]} 6... dxc4 {[%clk 0:02:56.5]}
7. Qxc4 {[%clk 0:02:55.4]} 7... b6 {[%clk 0:02:56.8]} 8. Bf4 {[%clk 0:02:49.8]}
8... Nd5 {[%clk 0:02:40.4]} 9. Bg3 {[%clk 0:02:49.5]} 9... Ba6 {[%clk
0:02:40.3]} 10. Qc2 {[%clk 0:02:48.7]} 10... Nd7 {[%clk 0:02:32.9]} 11. e4
{[%clk 0:02:23]} 11... Bxf1 {[%clk 0:02:32.3]} 12. Kxf1 {[%clk 0:02:23]} 12...
N5f6 {[%clk 0:02:27.2]} 13. Bxc7 {[%clk 0:02:20.5]} 13... Qc8 {[%clk 0:02:20.5]}
14. Rc1 {[%clk 0:02:16.8]} 14... Qa6+ {[%clk 0:02:14.2]} 15. Ne2 {[%clk
0:02:09.5]} 15... Rc8 {[%clk 0:02:13.1]} 16. Qb1 {[%clk 0:01:58.9]} 16... O-O
{[%clk 0:02:09.4]} 17. f3 {[%clk 0:01:57.4]} 17... Nc5 {[%clk 0:01:28.5]} 18.
dxc5 {[%clk 0:01:29.3]} 18... Rxc7 {[%clk 0:01:28]} 19. cxb6 {[%clk 0:01:27.3]}
19... Rxc1+ {[%clk 0:01:26.6]} 20. Qxc1 {[%clk 0:01:27.9]} 20... Rc8 {[%clk
0:01:19.3]} 21. Qd2 {[%clk 0:01:19.2]} 21... Qxb6 {[%clk 0:01:11.7]} 22. g3
{[%clk 0:01:18.6]} 22... Rd8 {[%clk 0:01:10.4]} 23. Qc1 {[%clk 0:01:10]} 23...
Nd7 {[%clk 0:00:30.7]} 24. Kg2 {[%clk 0:01:07.2]} 24... Ne5 {[%clk 0:00:30.7]}
25. Rd1 {[%clk 0:01:02.6]} 25... Rxd1 {[%clk 0:00:28.2]} 26. Qxd1 {[%clk
0:01:01.9]} 26... g5 {[%clk 0:00:19.3]} 27. Qd4 {[%clk 0:00:56.9]} 27... Qc7
{[%clk 0:00:19.3]} 28. Nc3 {[%clk 0:00:54.8]} 28... h5 {[%clk 0:00:17]} 29. b4
{[%clk 0:00:42.1]} 29... h4 {[%clk 0:00:14.8]} 30. Qc5 {[%clk 0:00:42]} 30...
Qb8 {[%clk 0:00:13.8]} 31. Qe3 {[%clk 0:00:26.2]} 31... f6 {[%clk 0:00:12.3]}
32. f4 {[%clk 0:00:24.1]} 32... gxf4 {[%clk 0:00:11.5]} 33. gxf4 {[%clk
0:00:24.7]} 33... Ng6 {[%clk 0:00:12]} 34. Kf3 {[%clk 0:00:24.8]} 34... Qc8
{[%clk 0:00:08.8]} 35. Ne2 {[%clk 0:00:20.6]} 35... Qc4 {[%clk 0:00:08.3]} 36.
Qxa7 {[%clk 0:00:18.8]} 36... f5 {[%clk 0:00:06.4]} 37. Qe3 {[%clk 0:00:18.1]}
37... e5 {[%clk 0:00:03.1]} 38. exf5 {[%clk 0:00:17]} 38... Nxf4 {[%clk
0:00:02.9]} 39. Nxf4 {[%clk 0:00:15.5]} 39... Qf1+ {[%clk 0:00:02.1]} 40. Ke4
{[%clk 0:00:15]} 40... exf4 {[%clk 0:00:02]} 41. Qxf4 {[%clk 0:00:14.4]} 41...
Qc4+ {[%clk 0:00:02]} 42. Kf3 {[%clk 0:00:13.9]} 42... Qf1+ {[%clk 0:00:02.1]}
43. Kg4 {[%clk 0:00:14.1]} 43... Qg2+ {[%clk 0:00:02.3]} 44. Kxh4 {[%clk
0:00:14.4]} 1-0

[Event "Late-Titled-Tuesday-Blitz-February-27-2024"]
[Site "Chess.com"]
[Date "2024.02.27"]
[Round "4"]
[White "SharathRk6"]
[Black "RantomOpening"]
[Result "1/2-1/2"]
[WhiteElo "2364"]
[BlackElo "2565"]
[TimeControl "180+1"]
[EndTime "14:40:35 PST"]
[Termination "Game drawn by agreement"]

1. e4 {[%clk 0:03:00.9]} 1... c5 {[%clk 0:02:59.7]} 2. Nf3 {[%clk 0:03:01.1]}
2... e6 {[%clk 0:02:59.9]} 3. d4 {[%clk 0:03:00.8]} 3... cxd4 {[%clk 0:03:00.5]}
4. Nxd4 {[%clk 0:03:01.1]} 4... Nf6 {[%clk 0:03:01.1]} 5. Nc3 {[%clk 0:03:01]}
5... Nc6 {[%clk 0:03:01.7]} 6. Be3 {[%clk 0:02:55.6]} 6... Bb4 {[%clk 0:03:01]}
7. Nxc6 {[%clk 0:02:44]} 7... bxc6 {[%clk 0:03:00.6]} 8. f3 {[%clk 0:02:43.9]}
8... d5 {[%clk 0:03:00.2]} 9. Qd3 {[%clk 0:02:29.3]} 9... O-O {[%clk 0:02:49.9]}
10. a3 {[%clk 0:02:26.4]} 10... Ba5 {[%clk 0:02:45.5]} 11. b4 {[%clk 0:02:22.5]}
11... Bb6 {[%clk 0:02:44.2]} 12. Bxb6 {[%clk 0:02:21.5]} 12... axb6 {[%clk
0:02:42.3]} 13. Be2 {[%clk 0:02:21]} 13... Ba6 {[%clk 0:02:30.1]} 14. Qd2 {[%clk
0:02:19.9]} 14... Bxe2 {[%clk 0:02:23.5]} 15. Qxe2 {[%clk 0:02:17]} 15... d4
{[%clk 0:02:20]} 16. Nd1 {[%clk 0:02:14.9]} 16... e5 {[%clk 0:02:18.5]} 17. O-O
{[%clk 0:02:14.8]} 17... Nh5 {[%clk 0:01:55.7]} 18. g3 {[%clk 0:01:48.4]} 18...
g6 {[%clk 0:01:22.9]} 19. Nf2 {[%clk 0:01:47.1]} 19... Ng7 {[%clk 0:01:20.1]}
20. Nd3 {[%clk 0:01:44.8]} 20... Qd6 {[%clk 0:01:18.9]} 21. f4 {[%clk
0:01:44.6]} 21... exf4 {[%clk 0:01:15.4]} 22. e5 {[%clk 0:01:43.9]} 22... Qe7
{[%clk 0:01:11.2]} 23. Rxf4 {[%clk 0:01:39.5]} 23... Ne6 {[%clk 0:01:06.7]} 24.
Rf3 {[%clk 0:01:39.2]} 24... c5 {[%clk 0:01:05]} 25. Rff1 {[%clk 0:01:25.8]}
25... c4 {[%clk 0:01:03.9]} 26. Nf4 {[%clk 0:01:25.7]} 26... Nxf4 {[%clk
0:00:59.6]} 27. Rxf4 {[%clk 0:01:21.8]} 27... Rad8 {[%clk 0:00:54.9]} 28. Qxc4
{[%clk 0:01:20.2]} 28... Qxe5 {[%clk 0:00:54.9]} 29. Rd1 {[%clk 0:01:16.1]}
29... Qe3+ {[%clk 0:00:54.3]} 30. Kg2 {[%clk 0:01:12.3]} 30... Qxa3 {[%clk
0:00:51.4]} 31. Rfxd4 {[%clk 0:01:11.3]} 31... Rc8 {[%clk 0:00:48.3]} 32. Qd3
{[%clk 0:01:02.4]} 32... Qxd3 {[%clk 0:00:47.2]} 33. cxd3 {[%clk 0:01:02.6]}
33... Rfe8 {[%clk 0:00:46.3]} 34. Rd2 {[%clk 0:00:59.6]} 34... Red8 {[%clk
0:00:41.8]} 35. Rxd8+ {[%clk 0:00:58.4]} 35... Rxd8 {[%clk 0:00:42.7]} 36. d4
{[%clk 0:00:58.7]} 36... Kg7 {[%clk 0:00:42.4]} 37. Kf3 {[%clk 0:00:59.2]} 37...
Kf6 {[%clk 0:00:42.8]} 38. Ke4 {[%clk 0:00:59]} 38... Ke6 {[%clk 0:00:43.1]} 39.
d5+ {[%clk 0:00:58.6]} 39... Kd6 {[%clk 0:00:43.5]} 40. Rc2 {[%clk 0:00:58.2]}
40... Rb8 {[%clk 0:00:26.6]} 41. Rc6+ {[%clk 0:00:57]} 41... Kd7 {[%clk
0:00:26]} 42. b5 {[%clk 0:00:57.5]} 42... Re8+ {[%clk 0:00:23.2]} 43. Kd4 {[%clk
0:00:56.1]} 43... Rb8 {[%clk 0:00:20.7]} 44. Ke5 {[%clk 0:00:54.8]} 44... Ke7
{[%clk 0:00:20.2]} 45. Rc7+ {[%clk 0:00:53.8]} 45... Ke8 {[%clk 0:00:19.2]} 46.
Kd6 {[%clk 0:00:54.4]} 46... Ra8 {[%clk 0:00:16.4]} 47. Kc6 {[%clk 0:00:54.7]}
47... Ra1 {[%clk 0:00:16.7]} 48. d6 {[%clk 0:00:54.3]} 48... Rc1+ {[%clk
0:00:16.6]} 49. Kxb6 {[%clk 0:00:54.7]} 49... Rd1 {[%clk 0:00:17]} 50. d7+
{[%clk 0:00:48.8]} 50... Kd8 {[%clk 0:00:17.4]} 51. Kb7 {[%clk 0:00:47.9]} 51...
f5 {[%clk 0:00:15.7]} 52. b6 {[%clk 0:00:47.5]} 52... g5 {[%clk 0:00:16.1]} 53.
Rc8+ {[%clk 0:00:43.1]} 53... Kxd7 {[%clk 0:00:16.2]} 54. Rc7+ {[%clk
0:00:43.5]} 54... Kd8 {[%clk 0:00:15.9]} 55. Rxh7 {[%clk 0:00:43.5]} 55... f4
{[%clk 0:00:15.8]} 56. gxf4 {[%clk 0:00:43.1]} 56... gxf4 {[%clk 0:00:16.7]} 57.
Rf7 {[%clk 0:00:43]} 57... Rd7+ {[%clk 0:00:16.6]} 58. Rxd7+ {[%clk 0:00:42.9]}
58... Kxd7 {[%clk 0:00:17.5]} 59. Ka7 {[%clk 0:00:43.3]} 59... f3 {[%clk
0:00:18.4]} 60. b7 {[%clk 0:00:43.7]} 60... f2 {[%clk 0:00:19.3]} 61. b8=Q
{[%clk 0:00:44.1]} 61... f1=Q {[%clk 0:00:20]} 62. Qb7+ {[%clk 0:00:44.3]} 62...
Ke6 {[%clk 0:00:19.8]} 63. Qa6+ {[%clk 0:00:41.1]} 1/2-1/2

[Event "Late-Titled-Tuesday-Blitz-February-27-2024"]
[Site "Chess.com"]
[Date "2024.02.27"]
[Round "4"]
[White "xasid81"]
[Black "jcibarra"]
[Result "1-0"]
[WhiteElo "2623"]
[BlackElo "2928"]
[TimeControl "180+1"]
[EndTime "14:40:40 PST"]
[Termination "xasid81 won by resignation"]

1. d4 {[%clk 0:03:00.9]} 1... Nf6 {[%clk 0:02:59.6]} 2. Nf3 {[%clk 0:03:00.4]}
2... g6 {[%clk 0:02:59.5]} 3. g3 {[%clk 0:02:58.4]} 3... d6 {[%clk 0:02:59.2]}
4. Bg2 {[%clk 0:02:58.6]} 4... Bg7 {[%clk 0:02:59.9]} 5. O-O {[%clk 0:02:59.1]}
5... O-O {[%clk 0:03:00.4]} 6. b3 {[%clk 0:02:52.9]} 6... b5 {[%clk 0:03:00]} 7.
Bb2 {[%clk 0:02:51.9]} 7... Bb7 {[%clk 0:02:59.4]} 8. Nbd2 {[%clk 0:02:49.9]}
8... Nbd7 {[%clk 0:02:58.8]} 9. Re1 {[%clk 0:02:49.6]} 9... c5 {[%clk
0:02:58.4]} 10. c4 {[%clk 0:02:46.2]} 10... bxc4 {[%clk 0:02:50.7]} 11. Nxc4
{[%clk 0:02:45.9]} 11... a5 {[%clk 0:02:50.4]} 12. dxc5 {[%clk 0:02:41.3]} 12...
Nxc5 {[%clk 0:02:49.7]} 13. Rc1 {[%clk 0:02:27.7]} 13... Ra6 {[%clk 0:02:46.8]}
14. Nd4 {[%clk 0:02:24.1]} 14... Qa8 {[%clk 0:02:37.2]} 15. Bxb7 {[%clk
0:02:22.3]} 15... Qxb7 {[%clk 0:02:38.1]} 16. Ba3 {[%clk 0:02:14.1]} 16... Rc8
{[%clk 0:02:36.5]} 17. Ne3 {[%clk 0:02:03.4]} 17... Nfe4 {[%clk 0:02:21.9]} 18.
Bxc5 {[%clk 0:01:48.1]} 18... Nxc5 {[%clk 0:01:52.9]} 19. Nf3 {[%clk 0:01:44.8]}
19... a4 {[%clk 0:01:49.9]} 20. Qd5 {[%clk 0:01:38.4]} 20... Rb8 {[%clk
0:01:39.5]} 21. Ng5 {[%clk 0:01:21]} 21... Qxd5 {[%clk 0:01:33.6]} 22. Nxd5
{[%clk 0:01:20.1]} 22... e6 {[%clk 0:01:31.1]} 23. b4 {[%clk 0:01:07]} 23... Nd7
{[%clk 0:01:12.9]} 24. Ne7+ {[%clk 0:01:06.4]} 24... Kf8 {[%clk 0:01:11.2]} 25.
Nc6 {[%clk 0:01:05.2]} 25... Rbb6 {[%clk 0:01:07.4]} 26. Nd8 {[%clk 0:00:43.5]}
26... Ke7 {[%clk 0:00:40.5]} 27. Ngxf7 {[%clk 0:00:34.4]} 27... Ra8 {[%clk
0:00:32.8]} 28. Rc7 {[%clk 0:00:23.7]} 28... Rxd8 {[%clk 0:00:31.3]} 29. Nxd8
{[%clk 0:00:24.6]} 29... Kxd8 {[%clk 0:00:31.7]} 30. Rec1 {[%clk 0:00:22.5]}
30... Rxb4 {[%clk 0:00:32]} 31. Rc8+ {[%clk 0:00:20.7]} 31... Ke7 {[%clk
0:00:32]} 32. R1c7 {[%clk 0:00:21.3]} 32... Rb2 {[%clk 0:00:21.2]} 33. e3 {[%clk
0:00:18]} 33... Rb5 {[%clk 0:00:07.6]} 34. Ra7 {[%clk 0:00:15.2]} 34... Rc5
{[%clk 0:00:08.2]} 35. Rb8 {[%clk 0:00:13.7]} 35... d5 {[%clk 0:00:03.9]} 36.
Rbb7 {[%clk 0:00:13.4]} 36... Be5 {[%clk 0:00:04.4]} 37. Rxd7+ {[%clk
0:00:13.5]} 37... Ke8 {[%clk 0:00:02.4]} 38. Rxh7 {[%clk 0:00:12.6]} 38... Rc8
{[%clk 0:00:01.8]} 39. Kg2 {[%clk 0:00:12.3]} 39... Kf8 {[%clk 0:00:02.1]} 40.
Rxa4 {[%clk 0:00:11.6]} 40... Kg8 {[%clk 0:00:02.2]} 41. Re7 {[%clk 0:00:11.4]}
41... Bf6 {[%clk 0:00:02]} 42. Rxe6 {[%clk 0:00:11.4]} 42... Kf7 {[%clk
0:00:02.9]} 43. Rb6 {[%clk 0:00:10.5]} 43... d4 {[%clk 0:00:02.6]} 44. Rxd4
{[%clk 0:00:07.5]} 44... Bxd4 {[%clk 0:00:02.6]} 45. exd4 {[%clk 0:00:08.4]}
45... Rc2 {[%clk 0:00:02.9]} 46. a4 {[%clk 0:00:08.2]} 46... Rb2 {[%clk
0:00:03.6]} 47. Rxb2 {[%clk 0:00:08.1]} 1-0

[Event "Late-Titled-Tuesday-Blitz-February-27-2024"]
[Site "Chess.com"]
[Date "2024.02.27"]
[Round "4"]
[White "DeArron_Fox"]
[Black "ritanovikova"]
[Result "1-0"]
[WhiteElo "2466"]
[BlackElo "2230"]
[TimeControl "180+1"]
[EndTime "14:40:40 PST"]
[Termination "DeArron_Fox won by checkmate"]

1. d4 {[%clk 0:03:00.9]} 1... g6 {[%clk 0:02:59.3]} 2. c4 {[%clk 0:02:57.9]}
2... Bg7 {[%clk 0:03:00.2]} 3. Nc3 {[%clk 0:02:58.3]} 3... d6 {[%clk 0:02:59.1]}
4. e4 {[%clk 0:02:58.6]} 4... Nc6 {[%clk 0:02:59.1]} 5. Be3 {[%clk 0:02:57.7]}
5... e5 {[%clk 0:02:58.6]} 6. Nge2 {[%clk 0:02:57.9]} 6... exd4 {[%clk 0:02:58]}
7. Nxd4 {[%clk 0:02:58.8]} 7... Nxd4 {[%clk 0:02:57.4]} 8. Bxd4 {[%clk
0:02:59.7]} 8... Nf6 {[%clk 0:02:57.8]} 9. f3 {[%clk 0:02:58.4]} 9... O-O {[%clk
0:02:55.9]} 10. Qd2 {[%clk 0:02:58.9]} 10... a6 {[%clk 0:02:50.6]} 11. O-O-O
{[%clk 0:02:59.2]} 11... Qe7 {[%clk 0:02:47.7]} 12. h4 {[%clk 0:02:59.1]} 12...
h5 {[%clk 0:02:45.6]} 13. Be2 {[%clk 0:01:48.2]} 13... Rb8 {[%clk 0:02:26.7]}
14. Rdg1 {[%clk 0:01:07.1]} 14... Bd7 {[%clk 0:02:20.5]} 15. g4 {[%clk
0:00:45.4]} 15... hxg4 {[%clk 0:02:16.2]} 16. h5 {[%clk 0:00:39.6]} 16... Nxh5
{[%clk 0:02:10.3]} 17. Nd5 {[%clk 0:00:32.2]} 17... Qd8 {[%clk 0:02:01.1]} 18.
fxg4 {[%clk 0:00:17.4]} 18... Nf6 {[%clk 0:01:30.8]} 19. Nxf6+ {[%clk
0:00:07.3]} 19... Bxf6 {[%clk 0:01:29.8]} 20. Kb1 {[%clk 0:00:06.9]} 20... Bxd4
{[%clk 0:00:59.8]} 21. Qxd4 {[%clk 0:00:06.1]} 21... f6 {[%clk 0:00:59.6]} 22.
g5 {[%clk 0:00:05.1]} 22... Kg7 {[%clk 0:00:57.6]} 23. c5 {[%clk 0:00:03.4]}
23... Be6 {[%clk 0:00:51.6]} 24. cxd6 {[%clk 0:00:03.3]} 24... Qxd6 {[%clk
0:00:49.9]} 25. gxf6+ {[%clk 0:00:03.8]} 25... Rxf6 {[%clk 0:00:47]} 26. Qc3
{[%clk 0:00:04.3]} 26... Qc6 {[%clk 0:00:42]} 27. Qe5 {[%clk 0:00:03.2]} 27...
Qd6 {[%clk 0:00:41.1]} 28. Qg5 {[%clk 0:00:02.7]} 28... Qf4 {[%clk 0:00:32.8]}
29. Qg2 {[%clk 0:00:03.2]} 29... Kf7 {[%clk 0:00:30.9]} 30. Ka1 {[%clk
0:00:03.3]} 30... Qe5 {[%clk 0:00:29.3]} 31. Rf1 {[%clk 0:00:03.5]} 31... Kg7
{[%clk 0:00:28.2]} 32. Rxf6 {[%clk 0:00:03.1]} 32... Qxf6 {[%clk 0:00:28.6]} 33.
Qh2 {[%clk 0:00:03.7]} 33... Kf7 {[%clk 0:00:26.9]} 34. Qxc7+ {[%clk 0:00:03.6]}
34... Qe7 {[%clk 0:00:24.3]} 35. Rh7+ {[%clk 0:00:02.9]} 35... Kf6 {[%clk
0:00:24]} 36. Qxe7+ {[%clk 0:00:03.8]} 36... Ke5 {[%clk 0:00:23.9]} 37. Qc7+
{[%clk 0:00:03.4]} 37... Kxe4 {[%clk 0:00:22.7]} 38. Qxb8 {[%clk 0:00:04.3]}
38... Bd5 {[%clk 0:00:23]} 39. Qe8+ {[%clk 0:00:03.8]} 39... Kd4 {[%clk
0:00:23.2]} 40. Rd7 {[%clk 0:00:04.7]} 40... Kc5 {[%clk 0:00:23.1]} 41. Rxd5+
{[%clk 0:00:05.6]} 41... Kxd5 {[%clk 0:00:22]} 42. Qxg6 {[%clk 0:00:06.5]} 42...
b5 {[%clk 0:00:22.4]} 43. Qd3+ {[%clk 0:00:07.4]} 43... Kc5 {[%clk 0:00:22.9]}
44. Bf3 {[%clk 0:00:08.3]} 44... a5 {[%clk 0:00:23.6]} 45. Qe4 {[%clk
0:00:09.2]} 45... b4 {[%clk 0:00:24.3]} 46. Qc6+ {[%clk 0:00:09.4]} 46... Kd4
{[%clk 0:00:24.2]} 47. Qd5+ {[%clk 0:00:09.8]} 47... Ke3 {[%clk 0:00:25.1]} 48.
Qe4+ {[%clk 0:00:09.9]} 48... Kf2 {[%clk 0:00:26]} 49. Bg4 {[%clk 0:00:10.1]}
49... Kg3 {[%clk 0:00:26.9]} 50. Bf5 {[%clk 0:00:09.8]} 50... Kf2 {[%clk
0:00:27.1]} 51. Qd3 {[%clk 0:00:08.3]} 51... b3 {[%clk 0:00:28]} 52. a4 {[%clk
0:00:07.7]} 52... Kg1 {[%clk 0:00:28.1]} 53. Qe2 {[%clk 0:00:06.8]} 53... Kh1
{[%clk 0:00:28.2]} 54. Bh3 {[%clk 0:00:07.4]} 54... Kg1 {[%clk 0:00:28.3]} 55.
Qg2# {[%clk 0:00:07.8]} 1-0

[Event "Late-Titled-Tuesday-Blitz-February-27-2024"]
[Site "Chess.com"]
[Date "2024.02.27"]
[Round "4"]
[White "LiemLe"]
[Black "Kiborg95"]
[Result "1-0"]
[WhiteElo "3060"]
[BlackElo "2821"]
[TimeControl "180+1"]
[EndTime "14:40:42 PST"]
[Termination "LiemLe won by resignation"]

1. d4 {[%clk 0:03:00.9]} 1... d6 {[%clk 0:02:59.7]} 2. Nf3 {[%clk 0:02:59.5]}
2... Nf6 {[%clk 0:02:59.8]} 3. g3 {[%clk 0:02:56.1]} 3... Nbd7 {[%clk 0:02:59]}
4. Bg2 {[%clk 0:02:55.3]} 4... e5 {[%clk 0:02:59.7]} 5. c4 {[%clk 0:02:55.5]}
5... c6 {[%clk 0:02:59.6]} 6. Nc3 {[%clk 0:02:55.5]} 6... e4 {[%clk 0:03:00.2]}
7. Nh4 {[%clk 0:02:43.4]} 7... d5 {[%clk 0:02:59.8]} 8. cxd5 {[%clk 0:02:44.3]}
8... cxd5 {[%clk 0:02:59.9]} 9. f3 {[%clk 0:02:44.9]} 9... exf3 {[%clk
0:02:57.7]} 10. Nxf3 {[%clk 0:02:45.8]} 10... Be7 {[%clk 0:02:50.5]} 11. O-O
{[%clk 0:02:45.4]} 11... O-O {[%clk 0:02:50.9]} 12. Qb3 {[%clk 0:02:26.9]} 12...
Nb6 {[%clk 0:02:49.4]} 13. Ne5 {[%clk 0:02:26.2]} 13... Be6 {[%clk 0:02:49.7]}
14. a4 {[%clk 0:02:11.7]} 14... a5 {[%clk 0:02:45.7]} 15. Bf4 {[%clk 0:02:10.1]}
15... Rc8 {[%clk 0:02:39.3]} 16. Rac1 {[%clk 0:02:06.2]} 16... Nh5 {[%clk
0:02:36.2]} 17. Be3 {[%clk 0:02:00]} 17... Qd6 {[%clk 0:02:19.5]} 18. Qa2 {[%clk
0:01:13.6]} 18... Nf6 {[%clk 0:01:41.3]} 19. b3 {[%clk 0:01:04.7]} 19... Qa3
{[%clk 0:01:13.5]} 20. Qb1 {[%clk 0:01:04.4]} 20... Ne4 {[%clk 0:01:08.4]} 21.
Nb5 {[%clk 0:01:00.6]} 21... Qb4 {[%clk 0:00:25.8]} 22. Nd3 {[%clk 0:01:00.5]}
22... Nd2 {[%clk 0:00:25]} 23. Qb2 {[%clk 0:00:37.5]} 23... Nxf1 {[%clk
0:00:25.2]} 24. Nxb4 {[%clk 0:00:20.3]} 24... Nxe3 {[%clk 0:00:25.6]} 25. Nd3
{[%clk 0:00:21.1]} 25... Rxc1+ {[%clk 0:00:21.7]} 26. Qxc1 {[%clk 0:00:22]}
26... Nxg2 {[%clk 0:00:19.1]} 27. Qc7 {[%clk 0:00:21.8]} 27... Bd8 {[%clk
0:00:17.6]} 28. Qe5 {[%clk 0:00:21.7]} 28... Nd7 {[%clk 0:00:10.2]} 29. Qd6
{[%clk 0:00:16.1]} 29... Ne3 {[%clk 0:00:10.6]} 30. Nf4 {[%clk 0:00:14.2]} 30...
Nf5 {[%clk 0:00:10.8]} 31. Qa3 {[%clk 0:00:07.5]} 31... Bf6 {[%clk 0:00:10.7]}
32. Kg2 {[%clk 0:00:02.6]} 32... Nxd4 {[%clk 0:00:08.9]} 33. Nxd4 {[%clk
0:00:01.9]} 33... Bxd4 {[%clk 0:00:09.8]} 34. Nxe6 {[%clk 0:00:02.6]} 34... fxe6
{[%clk 0:00:10.3]} 35. Qd6 {[%clk 0:00:03.4]} 35... Nc5 {[%clk 0:00:08.9]} 36.
Qe7 {[%clk 0:00:02.7]} 36... h6 {[%clk 0:00:07.2]} 37. Kh3 {[%clk 0:00:03.1]}
37... Rf7 {[%clk 0:00:07.4]} 38. Qe8+ {[%clk 0:00:03.3]} 38... Rf8 {[%clk
0:00:08.1]} 39. Qb5 {[%clk 0:00:03.6]} 39... Kh7 {[%clk 0:00:05.8]} 40. Qxa5
{[%clk 0:00:03.4]} 40... Rf2 {[%clk 0:00:05.4]} 41. Qb4 {[%clk 0:00:03.1]} 41...
Be3 {[%clk 0:00:05.1]} 42. Qc3 {[%clk 0:00:01.7]} 42... Rxe2 {[%clk 0:00:02.6]}
43. b4 {[%clk 0:00:02.3]} 43... Ne4 {[%clk 0:00:02.5]} 44. Qd3 {[%clk
0:00:02.7]} 44... g6 {[%clk 0:00:02.2]} 45. Qxe2 {[%clk 0:00:02.6]} 45... Ng5+
{[%clk 0:00:01]} 46. Kg2 {[%clk 0:00:02.4]} 46... h5 {[%clk 0:00:01.9]} 47. Qxe3
{[%clk 0:00:02.4]} 1-0

[Event "Late-Titled-Tuesday-Blitz-February-27-2024"]
[Site "Chess.com"]
[Date "2024.02.27"]
[Round "4"]
[White "martinmena"]
[Black "WindWhistler11"]
[Result "0-1"]
[WhiteElo "2252"]
[BlackElo "2496"]
[TimeControl "180+1"]
[EndTime "14:40:42 PST"]
[Termination "WindWhistler11 won by checkmate"]

1. c4 {[%clk 0:03:00.9]} 1... Nf6 {[%clk 0:02:59.4]} 2. g3 {[%clk 0:02:56.2]}
2... e5 {[%clk 0:02:55.2]} 3. Bg2 {[%clk 0:02:55.6]} 3... Be7 {[%clk 0:02:54]}
4. Nc3 {[%clk 0:02:54.5]} 4... d6 {[%clk 0:02:54.2]} 5. e4 {[%clk 0:02:53.1]}
5... O-O {[%clk 0:02:54.3]} 6. Nge2 {[%clk 0:02:52.4]} 6... c6 {[%clk
0:02:54.7]} 7. O-O {[%clk 0:02:51.9]} 7... Nbd7 {[%clk 0:02:51.7]} 8. d4 {[%clk
0:02:33.9]} 8... Re8 {[%clk 0:02:47.2]} 9. b3 {[%clk 0:02:26.5]} 9... a6 {[%clk
0:02:37.1]} 10. Bb2 {[%clk 0:02:06.5]} 10... b5 {[%clk 0:02:29.2]} 11. cxb5
{[%clk 0:01:59.3]} 11... axb5 {[%clk 0:02:16]} 12. Qc2 {[%clk 0:01:56.6]} 12...
b4 {[%clk 0:02:07.1]} 13. Nd1 {[%clk 0:01:56.2]} 13... Ba6 {[%clk 0:02:07]} 14.
Re1 {[%clk 0:01:54.7]} 14... c5 {[%clk 0:02:04.3]} 15. d5 {[%clk 0:01:50.2]}
15... Ng4 {[%clk 0:01:39.7]} 16. h3 {[%clk 0:01:43.7]} 16... Nh6 {[%clk
0:01:40]} 17. Ne3 {[%clk 0:01:41.4]} 17... Bg5 {[%clk 0:01:39.7]} 18. f4 {[%clk
0:01:24.9]} 18... exf4 {[%clk 0:01:37.1]} 19. gxf4 {[%clk 0:01:23.3]} 19... Bh4
{[%clk 0:01:26.3]} 20. Rf1 {[%clk 0:01:16.4]} 20... f5 {[%clk 0:01:20.2]} 21.
Nc4 {[%clk 0:01:10.1]} 21... Nb6 {[%clk 0:01:17.1]} 22. exf5 {[%clk 0:00:54.3]}
22... Nxc4 {[%clk 0:01:06.1]} 23. bxc4 {[%clk 0:00:53.7]} 23... Qd7 {[%clk
0:00:49.8]} 24. Be4 {[%clk 0:00:40.3]} 24... Qe7 {[%clk 0:00:48]} 25. Bf3 {[%clk
0:00:24.2]} 25... Qe3+ {[%clk 0:00:40]} 26. Kg2 {[%clk 0:00:20.3]} 26... Bc8
{[%clk 0:00:38.3]} 27. Bc1 {[%clk 0:00:12.9]} 27... Qe7 {[%clk 0:00:35.1]} 28.
Ng3 {[%clk 0:00:09.6]} 28... Bxg3 {[%clk 0:00:34.1]} 29. Kxg3 {[%clk 0:00:09.7]}
29... Nxf5+ {[%clk 0:00:34.5]} 30. Kh2 {[%clk 0:00:09.4]} 30... Nd4 {[%clk
0:00:35.2]} 31. Qd1 {[%clk 0:00:08.8]} 31... Qh4 {[%clk 0:00:34.3]} 32. Bb2
{[%clk 0:00:07.7]} 32... Qxh3+ {[%clk 0:00:32.4]} 33. Kg1 {[%clk 0:00:05.8]}
33... Qg3+ {[%clk 0:00:30.5]} 34. Kh1 {[%clk 0:00:05.9]} 34... Bh3 {[%clk
0:00:21.4]} 35. Bxd4 {[%clk 0:00:03.2]} 35... Bxf1 {[%clk 0:00:19.9]} 36. Bb2
{[%clk 0:00:02.8]} 36... Be2 {[%clk 0:00:13.6]} 37. Bxe2 {[%clk 0:00:01.6]}
37... Qh3+ {[%clk 0:00:14.2]} 38. Kg1 {[%clk 0:00:01.5]} 38... Re3 {[%clk
0:00:15.1]} 39. Bf3 {[%clk 0:00:01.1]} 39... Rxf3 {[%clk 0:00:14.8]} 40. Qe2
{[%clk 0:00:01.4]} 40... Rg3+ {[%clk 0:00:15]} 41. Kf2 {[%clk 0:00:02.1]} 41...
Rg2+ {[%clk 0:00:15.4]} 42. Ke1 {[%clk 0:00:03]} 42... Rxe2+ {[%clk 0:00:16]}
43. Kxe2 {[%clk 0:00:03.9]} 43... Re8+ {[%clk 0:00:16.8]} 44. Kd2 {[%clk
0:00:04.8]} 44... Qe3+ {[%clk 0:00:15.2]} 45. Kc2 {[%clk 0:00:05.7]} 45... Qe2+
{[%clk 0:00:15]} 46. Kb3 {[%clk 0:00:06.3]} 46... Qd3+ {[%clk 0:00:15.1]} 47.
Ka4 {[%clk 0:00:06.5]} 47... Qxc4 {[%clk 0:00:15.5]} 48. Rg1 {[%clk 0:00:04.9]}
48... Ra8# {[%clk 0:00:14.8]} 0-1